[Event "*** Titled Tuesday Blitz"]
[Site "Chess.com"]
[Date "2020.10.20"]
[Round "7"]
[White "konradrutkowski"]
[Black "Sacbutt"]
[Result "1/2-1/2"]
[WhiteElo "2404"]
[BlackElo "2283"]
[TimeControl "180+1"]
[EndTime "11:20:37 PDT"]
[Termination "Game drawn - insufficient material"]

1. e4 {[%clk 0:03:00.9]} 1... d5 {[%clk 0:02:57.7]} 2. exd5 {[%clk 0:03:00.7]}
2... Qxd5 {[%clk 0:02:58.6]} 3. Nc3 {[%clk 0:03:00.2]} 3... Qd6 {[%clk
0:02:58.6]} 4. d4 {[%clk 0:02:59]} 4... Nf6 {[%clk 0:02:58]} 5. Nf3 {[%clk
0:02:58.1]} 5... c6 {[%clk 0:02:58.3]} 6. Ne5 {[%clk 0:02:57.4]} 6... Nbd7
{[%clk 0:02:57.5]} 7. Bf4 {[%clk 0:02:48.7]} 7... Nd5 {[%clk 0:02:53.9]} 8. Nxd5
{[%clk 0:02:42.7]} 8... Qxd5 {[%clk 0:02:45.8]} 9. Bc4 {[%clk 0:02:16.1]} 9...
Qe4+ {[%clk 0:02:44.6]} 10. Qe2 {[%clk 0:02:16.2]} 10... Qxe2+ {[%clk
0:02:44.1]} 11. Kxe2 {[%clk 0:02:16.8]} 11... Nxe5 {[%clk 0:02:44.2]} 12. Bxe5
{[%clk 0:02:17.4]} 12... Bf5 {[%clk 0:02:40.9]} 13. c3 {[%clk 0:02:16]} 13... e6
{[%clk 0:02:40.2]} 14. h4 {[%clk 0:02:11.2]} 14... Be7 {[%clk 0:02:33.5]} 15. h5
{[%clk 0:02:09.9]} 15... Bf6 {[%clk 0:02:17.4]} 16. Bxf6 {[%clk 0:02:07]} 16...
gxf6 {[%clk 0:02:16.9]} 17. f3 {[%clk 0:01:58.8]} 17... h6 {[%clk 0:02:15.8]}
18. g4 {[%clk 0:01:58.3]} 18... Bh7 {[%clk 0:02:15.1]} 19. Ke3 {[%clk
0:01:53.7]} 19... Rg8 {[%clk 0:02:12.1]} 20. Kf4 {[%clk 0:01:53.2]} 20... f5
{[%clk 0:01:56.7]} 21. Rhg1 {[%clk 0:01:49.8]} 21... fxg4 {[%clk 0:01:55.7]} 22.
Rxg4 {[%clk 0:01:50]} 22... Ke7 {[%clk 0:01:50]} 23. Rag1 {[%clk 0:01:48.6]}
23... Rxg4+ {[%clk 0:01:44.7]} 24. fxg4 {[%clk 0:01:47.3]} 24... Rg8 {[%clk
0:01:28.9]} 25. g5 {[%clk 0:01:47.3]} 25... hxg5+ {[%clk 0:01:24.7]} 26. Rxg5
{[%clk 0:01:47.4]} 26... f6 {[%clk 0:01:11.3]} 27. Rxg8 {[%clk 0:01:46.4]} 27...
Bxg8 {[%clk 0:01:11.2]} 28. Be2 {[%clk 0:01:45.6]} 28... Bh7 {[%clk 0:01:08.9]}
29. Bf3 {[%clk 0:01:42.3]} 29... Kf7 {[%clk 0:01:05.4]} 30. a4 {[%clk
0:01:26.6]} 30... Kg7 {[%clk 0:00:58.7]} 31. a5 {[%clk 0:01:25.9]} 31... a6
{[%clk 0:00:57]} 32. b4 {[%clk 0:01:19.4]} 32... Bd3 {[%clk 0:00:53.4]} 33. Bg4
{[%clk 0:01:14.3]} 33... Bc4 {[%clk 0:00:44.6]} 34. Bf3 {[%clk 0:00:57.3]} 34...
Kh6 {[%clk 0:00:37.1]} 35. Bd1 {[%clk 0:00:55.6]} 35... Kg7 {[%clk 0:00:28.7]}
36. Bc2 {[%clk 0:00:51.3]} 36... Kh6 {[%clk 0:00:28.1]} 37. Bg6 {[%clk 0:00:51]}
37... Kg7 {[%clk 0:00:28.3]} 38. Be8 {[%clk 0:00:50.4]} 38... Kh6 {[%clk
0:00:22]} 39. Bd7 {[%clk 0:00:49.2]} 39... Kxh5 {[%clk 0:00:22.1]} 40. Bc8
{[%clk 0:00:49.4]} 40... Kg6 {[%clk 0:00:21.5]} 41. Bxb7 {[%clk 0:00:49.4]}
41... Bb5 {[%clk 0:00:20.9]} 42. c4 {[%clk 0:00:45]} 42... Bxc4 {[%clk
0:00:20.1]} 43. Bxc6 {[%clk 0:00:45.5]} 43... Kf7 {[%clk 0:00:18]} 44. b5 {[%clk
0:00:41.6]} 44... Ke7 {[%clk 0:00:17.3]} 45. b6 {[%clk 0:00:37.8]} 45... Kd6
{[%clk 0:00:17.3]} 46. Bb7 {[%clk 0:00:34.6]} 46... e5+ {[%clk 0:00:15.2]} 47.
dxe5+ {[%clk 0:00:33.9]} 47... fxe5+ {[%clk 0:00:15.8]} 48. Ke4 {[%clk
0:00:33.8]} 48... Bf1 {[%clk 0:00:15.2]} 49. Bc8 {[%clk 0:00:26.6]} 49... Bg2+
{[%clk 0:00:15.3]} 50. Ke3 {[%clk 0:00:25.2]} 50... Kc5 {[%clk 0:00:12.7]} 51.
Bd7 {[%clk 0:00:19.9]} 51... Kb4 {[%clk 0:00:12.1]} 52. Bh3 {[%clk 0:00:14.9]}
52... Kxa5 {[%clk 0:00:10.9]} 53. Bxg2 {[%clk 0:00:14.4]} 53... Kxb6 {[%clk
0:00:11.4]} 54. Ke4 {[%clk 0:00:14.5]} 54... Kb5 {[%clk 0:00:11.7]} 55. Kxe5
{[%clk 0:00:15.4]} 55... a5 {[%clk 0:00:12.6]} 56. Bh3 {[%clk 0:00:14.8]} 56...
Kb4 {[%clk 0:00:13.5]} 57. Bd7 {[%clk 0:00:15.1]} 57... a4 {[%clk 0:00:14.4]}
58. Bxa4 {[%clk 0:00:14.5]} 1/2-1/2

[Event "*** Titled Tuesday Blitz"]
[Site "Chess.com"]
[Date "2020.10.20"]
[Round "7"]
[White "szachuspl"]
[Black "Pultis"]
[Result "1-0"]
[WhiteElo "2541"]
[BlackElo "2670"]
[TimeControl "180+1"]
[EndTime "11:20:40 PDT"]
[Termination "szachuspl won on time"]

1. d4 {[%clk 0:03:00.9]} 1... c5 {[%clk 0:03:00.9]} 2. d5 {[%clk 0:02:58.5]}
2... e5 {[%clk 0:03:01.2]} 3. e4 {[%clk 0:02:57.5]} 3... d6 {[%clk 0:03:00.6]}
4. Be3 {[%clk 0:02:52.5]} 4... g6 {[%clk 0:02:59.9]} 5. Nc3 {[%clk 0:02:51.7]}
5... a6 {[%clk 0:02:57.3]} 6. a4 {[%clk 0:02:50.8]} 6... Bg7 {[%clk 0:02:57.6]}
7. Nf3 {[%clk 0:02:49.7]} 7... Ne7 {[%clk 0:02:57.4]} 8. Nd2 {[%clk 0:02:49.3]}
8... O-O {[%clk 0:02:56.9]} 9. Nc4 {[%clk 0:02:47.8]} 9... f5 {[%clk 0:02:56.5]}
10. f3 {[%clk 0:02:46.2]} 10... f4 {[%clk 0:02:53.8]} 11. Bf2 {[%clk 0:02:46]}
11... g5 {[%clk 0:02:54.4]} 12. h4 {[%clk 0:02:37.1]} 12... g4 {[%clk
0:02:52.1]} 13. fxg4 {[%clk 0:02:31]} 13... b6 {[%clk 0:02:44.4]} 14. Be2 {[%clk
0:02:30.6]} 14... Qc7 {[%clk 0:02:44.2]} 15. Bf3 {[%clk 0:02:30.5]} 15... Nd7
{[%clk 0:02:43.6]} 16. Qe2 {[%clk 0:02:19.3]} 16... Rb8 {[%clk 0:02:43.2]} 17.
Na3 {[%clk 0:02:15.1]} 17... Qb7 {[%clk 0:02:27.4]} 18. g5 {[%clk 0:02:13]}
18... Rd8 {[%clk 0:02:22.2]} 19. Bg4 {[%clk 0:02:08.9]} 19... Nf8 {[%clk
0:02:21.6]} 20. Bxc8 {[%clk 0:02:08.9]} 20... Rdxc8 {[%clk 0:02:22.5]} 21. h5
{[%clk 0:02:06.7]} 21... Nd7 {[%clk 0:02:15.2]} 22. Qg4 {[%clk 0:02:05.9]} 22...
Nf8 {[%clk 0:02:11.6]} 23. Ra2 {[%clk 0:01:57.7]} 23... Ra8 {[%clk 0:02:02.2]}
24. Bh4 {[%clk 0:01:53.2]} 24... Rcb8 {[%clk 0:01:50.1]} 25. O-O {[%clk
0:01:48.2]} 25... Qc7 {[%clk 0:01:45.1]} 26. Raa1 {[%clk 0:01:46.7]} 26... Rb7
{[%clk 0:01:42.3]} 27. g3 {[%clk 0:01:43.2]} 27... Rab8 {[%clk 0:01:41.5]} 28.
Nc4 {[%clk 0:01:40.6]} 28... b5 {[%clk 0:01:39.7]} 29. axb5 {[%clk 0:01:40.6]}
29... axb5 {[%clk 0:01:40.6]} 30. Na5 {[%clk 0:01:31.7]} 30... b4 {[%clk
0:01:36.9]} 31. Ne2 {[%clk 0:01:20.9]} 31... Ra7 {[%clk 0:01:31]} 32. Nc4 {[%clk
0:01:19.8]} 32... Rba8 {[%clk 0:01:30.8]} 33. Rab1 {[%clk 0:01:18.6]} 33... Nc8
{[%clk 0:01:04.2]} 34. gxf4 {[%clk 0:00:57.4]} 34... exf4 {[%clk 0:01:03.1]} 35.
Rxf4 {[%clk 0:00:54.6]} 35... Nb6 {[%clk 0:00:59.4]} 36. Nxb6 {[%clk 0:00:54.2]}
36... Qxb6 {[%clk 0:01:00.3]} 37. Rbf1 {[%clk 0:00:53.6]} 37... Ra1 {[%clk
0:01:00.7]} 38. b3 {[%clk 0:00:39]} 38... Rxf1+ {[%clk 0:00:58.7]} 39. Rxf1
{[%clk 0:00:38.9]} 39... c4+ {[%clk 0:00:56.4]} 40. Bf2 {[%clk 0:00:38.6]} 40...
Qb5 {[%clk 0:00:56.1]} 41. Nd4 {[%clk 0:00:35.7]} 41... Qe8 {[%clk 0:00:55]} 42.
Nf5 {[%clk 0:00:35]} 42... Be5 {[%clk 0:00:43.2]} 43. Nh6+ {[%clk 0:00:30.7]}
43... Kh8 {[%clk 0:00:41.8]} 44. Be3 {[%clk 0:00:28.8]} 44... cxb3 {[%clk
0:00:35.2]} 45. cxb3 {[%clk 0:00:29.7]} 45... Rb8 {[%clk 0:00:34.2]} 46. Qf5
{[%clk 0:00:29.1]} 46... Bg7 {[%clk 0:00:29.6]} 47. Nf7+ {[%clk 0:00:28.6]}
47... Kg8 {[%clk 0:00:29.9]} 48. g6 {[%clk 0:00:27.1]} 48... hxg6 {[%clk
0:00:23.8]} 49. hxg6 {[%clk 0:00:28]} 49... Qe7 {[%clk 0:00:20.9]} 50. Bg5
{[%clk 0:00:27.1]} 50... Qa7+ {[%clk 0:00:21]} 51. Kg2 {[%clk 0:00:26.4]} 51...
Re8 {[%clk 0:00:21.5]} 52. Bf6 {[%clk 0:00:24.9]} 52... Qa2+ {[%clk 0:00:11.5]}
53. Rf2 {[%clk 0:00:24.4]} 53... Qb1 {[%clk 0:00:06.9]} 54. Bxg7 {[%clk
0:00:22.7]} 54... Nd7 {[%clk 0:00:06.2]} 55. Nxd6 {[%clk 0:00:20.6]} 55... Re7
{[%clk 0:00:03.4]} 56. Bf6 {[%clk 0:00:18.7]} 1-0

[Event "*** Titled Tuesday Blitz"]
[Site "Chess.com"]
[Date "2020.10.20"]
[Round "7"]
[White "Vanina1989"]
[Black "Heineccius"]
[Result "0-1"]
[WhiteElo "2660"]
[BlackElo "2539"]
[TimeControl "180+1"]
[EndTime "11:20:40 PDT"]
[Termination "Heineccius won on time"]

1. d4 {[%clk 0:03:00.9]} 1... Nf6 {[%clk 0:02:59.6]} 2. c4 {[%clk 0:03:00.7]}
2... e6 {[%clk 0:02:59.6]} 3. Nf3 {[%clk 0:03:00.6]} 3... Bb4+ {[%clk
0:02:59.2]} 4. Bd2 {[%clk 0:02:58.9]} 4... a5 {[%clk 0:02:57.8]} 5. g3 {[%clk
0:02:59.4]} 5... d6 {[%clk 0:02:57.5]} 6. Bg2 {[%clk 0:02:59.9]} 6... Nbd7
{[%clk 0:02:57.8]} 7. O-O {[%clk 0:03:00.2]} 7... e5 {[%clk 0:02:57.9]} 8. Bh6
{[%clk 0:02:57.8]} 8... gxh6 {[%clk 0:02:18.3]} 9. a3 {[%clk 0:02:57.3]} 9...
Bc5 {[%clk 0:02:18.7]} 10. dxc5 {[%clk 0:02:57]} 10... Nxc5 {[%clk 0:02:19.3]}
11. Nc3 {[%clk 0:02:49.3]} 11... a4 {[%clk 0:02:16.1]} 12. Nd2 {[%clk
0:02:39.4]} 12... Be6 {[%clk 0:02:12.4]} 13. e3 {[%clk 0:02:27]} 13... Qe7
{[%clk 0:01:31.8]} 14. Qe2 {[%clk 0:02:25.9]} 14... Bg4 {[%clk 0:01:28]} 15. f3
{[%clk 0:02:24.3]} 15... Bd7 {[%clk 0:01:27.1]} 16. e4 {[%clk 0:02:22.7]} 16...
Ne6 {[%clk 0:01:23.8]} 17. Qd3 {[%clk 0:02:14.2]} 17... Nd4 {[%clk 0:01:20.8]}
18. f4 {[%clk 0:02:14]} 18... h5 {[%clk 0:01:19.1]} 19. fxe5 {[%clk 0:01:37.5]}
19... dxe5 {[%clk 0:01:20]} 20. Nf3 {[%clk 0:01:37.3]} 20... c5 {[%clk
0:01:13.3]} 21. Nxd4 {[%clk 0:01:20.6]} 21... cxd4 {[%clk 0:01:14.2]} 22. Nd5
{[%clk 0:01:17.8]} 22... Nxd5 {[%clk 0:01:14]} 23. exd5 {[%clk 0:01:18.1]} 23...
O-O {[%clk 0:01:07.3]} 24. Rae1 {[%clk 0:01:14.3]} 24... Qg5 {[%clk 0:00:56.8]}
25. Qe2 {[%clk 0:01:13.2]} 25... Rae8 {[%clk 0:00:54.8]} 26. c5 {[%clk
0:01:04.5]} 26... f5 {[%clk 0:00:51.9]} 27. Qc4 {[%clk 0:01:03.6]} 27... Kh8
{[%clk 0:00:49.1]} 28. c6 {[%clk 0:00:23.3]} 28... bxc6 {[%clk 0:00:48.4]} 29.
dxc6 {[%clk 0:00:23.6]} 29... Bc8 {[%clk 0:00:49]} 30. Qc5 {[%clk 0:00:21.6]}
30... Qg7 {[%clk 0:00:44.5]} 31. c7 {[%clk 0:00:20.4]} 31... h4 {[%clk
0:00:37.2]} 32. Rf3 {[%clk 0:00:14.1]} 32... Re7 {[%clk 0:00:32.9]} 33. gxh4
{[%clk 0:00:11.9]} 33... e4 {[%clk 0:00:29.4]} 34. Rg3 {[%clk 0:00:11.8]} 34...
Rxc7 {[%clk 0:00:25.1]} 35. Qd6 {[%clk 0:00:11.5]} 35... Qe7 {[%clk 0:00:23.8]}
36. Qxd4+ {[%clk 0:00:11.4]} 36... Qf6 {[%clk 0:00:20.8]} 37. Qxa4 {[%clk
0:00:10]} 37... Rg7 {[%clk 0:00:18.9]} 38. Qc4 {[%clk 0:00:08.1]} 38... Be6
{[%clk 0:00:16.2]} 39. Qc5 {[%clk 0:00:07.3]} 39... Rfg8 {[%clk 0:00:15.6]} 40.
Ree3 {[%clk 0:00:06.2]} 40... f4 {[%clk 0:00:15.1]} 41. Rxg7 {[%clk 0:00:06]}
41... Qxg7 {[%clk 0:00:15.6]} 42. Re2 {[%clk 0:00:04.1]} 42... f3 {[%clk
0:00:15.6]} 43. Rf2 {[%clk 0:00:04.1]} 43... fxg2 {[%clk 0:00:15.1]} 44. Qe3
{[%clk 0:00:04.3]} 44... Qg4 {[%clk 0:00:14.7]} 45. Qd4+ {[%clk 0:00:02.8]}
45... Qg7 {[%clk 0:00:13.5]} 46. Qxe4 {[%clk 0:00:02.1]} 46... Bh3 {[%clk
0:00:11.7]} 47. Qf3 {[%clk 0:00:01.7]} 47... Bg4 {[%clk 0:00:10.4]} 48. Qg3
{[%clk 0:00:01.2]} 48... Bh5 {[%clk 0:00:09.2]} 0-1

[Event "*** Titled Tuesday Blitz"]
[Site "Chess.com"]
[Date "2020.10.20"]
[Round "7"]
[White "Korchmar_Vasiliy"]
[Black "Harsha_Bharathakoti"]
[Result "0-1"]
[WhiteElo "2602"]
[BlackElo "2780"]
[TimeControl "180+1"]
[EndTime "11:20:42 PDT"]
[Termination "Harsha_Bharathakoti won on time"]

1. e4 {[%clk 0:03:00.9]} 1... c6 {[%clk 0:02:52.5]} 2. Nc3 {[%clk 0:02:51.2]}
2... d5 {[%clk 0:02:53.4]} 3. Nf3 {[%clk 0:02:50.7]} 3... Bg4 {[%clk 0:02:52.2]}
4. h3 {[%clk 0:02:50.1]} 4... Bxf3 {[%clk 0:02:52.2]} 5. Qxf3 {[%clk 0:02:51]}
5... e6 {[%clk 0:02:52.8]} 6. Be2 {[%clk 0:02:49.6]} 6... Bc5 {[%clk 0:02:43.2]}
7. d3 {[%clk 0:02:40.8]} 7... Ne7 {[%clk 0:02:26.3]} 8. Qg3 {[%clk 0:02:27.4]}
8... O-O {[%clk 0:02:05.1]} 9. Bg5 {[%clk 0:02:27.2]} 9... Nd7 {[%clk
0:01:57.6]} 10. O-O-O {[%clk 0:02:20.5]} 10... b5 {[%clk 0:01:27.3]} 11. Bf3
{[%clk 0:02:12]} 11... Bd4 {[%clk 0:01:17.2]} 12. Ne2 {[%clk 0:02:04.5]} 12...
Bf6 {[%clk 0:01:08.4]} 13. h4 {[%clk 0:02:01.2]} 13... a5 {[%clk 0:00:53.6]} 14.
d4 {[%clk 0:01:58.8]} 14... dxe4 {[%clk 0:00:46.8]} 15. Bxe4 {[%clk 0:01:58.2]}
15... Nd5 {[%clk 0:00:37.6]} 16. Nf4 {[%clk 0:01:45]} 16... Nxf4 {[%clk
0:00:28.2]} 17. Qxf4 {[%clk 0:01:45.9]} 17... Rc8 {[%clk 0:00:21.2]} 18. Rh3
{[%clk 0:01:45.9]} 18... Kh8 {[%clk 0:00:17.9]} 19. Rg3 {[%clk 0:01:37.3]} 19...
Nb6 {[%clk 0:00:17.1]} 20. Qg4 {[%clk 0:01:18]} 20... Nd5 {[%clk 0:00:11.6]} 21.
Rdd3 {[%clk 0:01:09.8]} 21... g6 {[%clk 0:00:05.7]} 22. Rdf3 {[%clk 0:01:04.4]}
22... Bxg5+ {[%clk 0:00:05.3]} 23. hxg5 {[%clk 0:01:05.3]} 23... Kg7 {[%clk
0:00:05.7]} 24. Rh3 {[%clk 0:01:05.5]} 24... Rh8 {[%clk 0:00:06]} 25. Rh6 {[%clk
0:01:05.5]} 25... Qe7 {[%clk 0:00:04.5]} 26. Rfh3 {[%clk 0:01:03.4]} 26... c5
{[%clk 0:00:04]} 27. Qh4 {[%clk 0:01:02.4]} 27... Kf8 {[%clk 0:00:02.2]} 28. Kb1
{[%clk 0:00:53.8]} 28... cxd4 {[%clk 0:00:02.4]} 29. Rxh7 {[%clk 0:00:51]} 29...
Rxh7 {[%clk 0:00:03.3]} 30. Qxh7 {[%clk 0:00:51.3]} 30... Ke8 {[%clk 0:00:02.3]}
31. Bxd5 {[%clk 0:00:14.1]} 31... exd5 {[%clk 0:00:03.2]} 32. Rh1 {[%clk
0:00:14.5]} 32... Kd7 {[%clk 0:00:03.1]} 33. Qg7 {[%clk 0:00:13.5]} 33... d3
{[%clk 0:00:02.7]} 34. cxd3 {[%clk 0:00:11.7]} 34... Qe6 {[%clk 0:00:03.2]} 35.
Qd4 {[%clk 0:00:11.1]} 35... Rc7 {[%clk 0:00:03.5]} 36. a3 {[%clk 0:00:08]}
36... Qf5 {[%clk 0:00:03.4]} 37. f4 {[%clk 0:00:03.6]} 37... Rc4 {[%clk
0:00:02.3]} 38. Qe3 {[%clk 0:00:02.9]} 38... Rxf4 {[%clk 0:00:01.8]} 39. Qa7+
{[%clk 0:00:03.4]} 39... Kd6 {[%clk 0:00:01.7]} 40. Qb6+ {[%clk 0:00:03.6]}
40... Kd7 {[%clk 0:00:02.2]} 41. Qxb5+ {[%clk 0:00:03.9]} 41... Kd6 {[%clk
0:00:02.7]} 42. Rc1 {[%clk 0:00:04.3]} 42... Rf1 {[%clk 0:00:01.2]} 43. Qc6+
{[%clk 0:00:02.9]} 43... Ke5 {[%clk 0:00:01.9]} 44. Qc3+ {[%clk 0:00:02.4]}
44... Ke6 {[%clk 0:00:01.8]} 45. Qc6+ {[%clk 0:00:02.3]} 45... Ke5 {[%clk
0:00:02.2]} 46. Qc7+ {[%clk 0:00:02.5]} 46... Kd4 {[%clk 0:00:01.9]} 47. Qb6+
{[%clk 0:00:02.4]} 47... Kxd3 {[%clk 0:00:01.8]} 48. Qa6+ {[%clk 0:00:02.8]}
48... Kd2+ {[%clk 0:00:02.2]} 0-1

[Event "*** Titled Tuesday Blitz"]
[Site "Chess.com"]
[Date "2020.10.20"]
[Round "7"]
[White "TST2014"]
[Black "Arfan48"]
[Result "0-1"]
[WhiteElo "2500"]
[BlackElo "2392"]
[TimeControl "180+1"]
[EndTime "11:20:44 PDT"]
[Termination "Arfan48 won on time"]

1. d4 {[%clk 0:03:00.9]} 1... d5 {[%clk 0:02:59]} 2. c4 {[%clk 0:03:00.6]} 2...
c6 {[%clk 0:02:59.2]} 3. Nf3 {[%clk 0:03:00.2]} 3... Nf6 {[%clk 0:02:59.4]} 4.
Nc3 {[%clk 0:02:59.7]} 4... dxc4 {[%clk 0:02:59.7]} 5. a4 {[%clk 0:02:59.3]}
5... Bf5 {[%clk 0:02:59.5]} 6. Ne5 {[%clk 0:02:57.6]} 6... e6 {[%clk 0:02:57.5]}
7. f3 {[%clk 0:02:49.6]} 7... Bb4 {[%clk 0:02:41]} 8. Nxc4 {[%clk 0:02:41.4]}
8... a5 {[%clk 0:02:27]} 9. e4 {[%clk 0:02:40.1]} 9... Nxe4 {[%clk 0:02:14.7]}
10. fxe4 {[%clk 0:02:38.1]} 10... Qh4+ {[%clk 0:02:14.9]} 11. Kd2 {[%clk
0:02:28.4]} 11... Qxe4 {[%clk 0:02:14.2]} 12. Qf3 {[%clk 0:02:00.6]} 12... Qxd4+
{[%clk 0:02:09.3]} 13. Bd3 {[%clk 0:01:53.7]} 13... O-O {[%clk 0:01:54.8]} 14.
Ke2 {[%clk 0:01:53.4]} 14... Bg4 {[%clk 0:01:47.1]} 15. Be3 {[%clk 0:01:45]}
15... Bxf3+ {[%clk 0:01:47.2]} 16. gxf3 {[%clk 0:01:45]} 16... Qf6 {[%clk
0:01:46.5]} 17. Ne4 {[%clk 0:01:43.6]} 17... Qe7 {[%clk 0:01:37.4]} 18. Rhg1
{[%clk 0:01:39.3]} 18... Nd7 {[%clk 0:01:37.1]} 19. Bh6 {[%clk 0:01:31.1]} 19...
g6 {[%clk 0:01:36.7]} 20. Bg5 {[%clk 0:01:15]} 20... f6 {[%clk 0:01:23.2]} 21.
Bh6 {[%clk 0:01:14.5]} 21... Nc5 {[%clk 0:01:06]} 22. Nxc5 {[%clk 0:01:02.3]}
22... Qxc5 {[%clk 0:01:01.1]} 23. b3 {[%clk 0:00:59.4]} 23... Rfd8 {[%clk
0:00:55.2]} 24. Be3 {[%clk 0:00:55.4]} 24... Qh5 {[%clk 0:00:53.9]} 25. Bf4
{[%clk 0:00:49.9]} 25... Rxd3 {[%clk 0:00:50.7]} 26. Kxd3 {[%clk 0:00:49]} 26...
Qxf3+ {[%clk 0:00:50.3]} 27. Be3 {[%clk 0:00:49.5]} 27... Rd8+ {[%clk
0:00:50.2]} 28. Kc2 {[%clk 0:00:48.1]} 28... Qe2+ {[%clk 0:00:49.8]} 29. Kb1
{[%clk 0:00:34.8]} 29... Rd1+ {[%clk 0:00:49.3]} 30. Rxd1 {[%clk 0:00:34.1]}
30... Qxd1+ {[%clk 0:00:50.2]} 31. Ka2 {[%clk 0:00:31.2]} 31... Qe2+ {[%clk
0:00:45.2]} 32. Kb1 {[%clk 0:00:29.2]} 32... Bc3 {[%clk 0:00:42.1]} 33. Ra2
{[%clk 0:00:27.7]} 33... Qd1+ {[%clk 0:00:41.4]} 34. Bc1 {[%clk 0:00:27.8]}
34... Qxb3+ {[%clk 0:00:41.2]} 35. Nb2 {[%clk 0:00:28.1]} 35... Bxb2 {[%clk
0:00:30.9]} 36. Rxb2 {[%clk 0:00:27.5]} 36... Qd3+ {[%clk 0:00:30.1]} 37. Ka1
{[%clk 0:00:27.2]} 37... Qd4 {[%clk 0:00:29.3]} 38. Kb1 {[%clk 0:00:26.7]} 38...
b5 {[%clk 0:00:29.5]} 39. axb5 {[%clk 0:00:26.3]} 39... cxb5 {[%clk 0:00:30.4]}
40. Rc2 {[%clk 0:00:24.1]} 40... Qb4+ {[%clk 0:00:28.2]} 41. Bb2 {[%clk
0:00:24.1]} 41... Qe1+ {[%clk 0:00:28]} 42. Ka2 {[%clk 0:00:23]} 42... e5 {[%clk
0:00:27]} 43. Rc5 {[%clk 0:00:21.3]} 43... Qb4 {[%clk 0:00:26.6]} 44. Ba3 {[%clk
0:00:20.2]} 44... Qd2+ {[%clk 0:00:24.5]} 45. Kb1 {[%clk 0:00:19]} 45... Qxh2
{[%clk 0:00:23.8]} 46. Rxb5 {[%clk 0:00:18.8]} 46... Qh1+ {[%clk 0:00:23]} 47.
Kb2 {[%clk 0:00:18.6]} 47... Kg7 {[%clk 0:00:23.2]} 48. Rxa5 {[%clk 0:00:18.5]}
48... Qg2+ {[%clk 0:00:22.9]} 49. Kb3 {[%clk 0:00:18.4]} 49... Qb7+ {[%clk
0:00:22.5]} 50. Bb4 {[%clk 0:00:18.1]} 50... g5 {[%clk 0:00:20]} 51. Kc4 {[%clk
0:00:18.2]} 51... Kg6 {[%clk 0:00:20.3]} 52. Bc5 {[%clk 0:00:18.5]} 52... Qe4+
{[%clk 0:00:20.1]} 53. Kc3 {[%clk 0:00:16.8]} 53... Qe1+ {[%clk 0:00:18.6]} 54.
Kc4 {[%clk 0:00:12.4]} 54... Qxa5 {[%clk 0:00:19.1]} 55. Bb4 {[%clk 0:00:13.3]}
55... Qa6+ {[%clk 0:00:19.3]} 56. Kc5 {[%clk 0:00:13.2]} 56... g4 {[%clk
0:00:19.8]} 0-1

[Event "*** Titled Tuesday Blitz"]
[Site "Chess.com"]
[Date "2020.10.20"]
[Round "7"]
[White "mr65"]
[Black "canary2016"]
[Result "1/2-1/2"]
[WhiteElo "2158"]
[BlackElo "1944"]
[TimeControl "180+1"]
[EndTime "11:20:44 PDT"]
[Termination "Game drawn by repetition"]

1. e4 {[%clk 0:03:00.9]} 1... e5 {[%clk 0:02:59]} 2. Nf3 {[%clk 0:02:59.8]} 2...
Nf6 {[%clk 0:02:58.3]} 3. Nc3 {[%clk 0:02:57.6]} 3... Bb4 {[%clk 0:02:56.3]} 4.
Bc4 {[%clk 0:02:50.6]} 4... O-O {[%clk 0:02:55.6]} 5. O-O {[%clk 0:02:49.3]}
5... d6 {[%clk 0:02:54.2]} 6. Re1 {[%clk 0:02:43.9]} 6... Bg4 {[%clk 0:02:51.9]}
7. h3 {[%clk 0:02:43.5]} 7... Bh5 {[%clk 0:02:51.2]} 8. Nd5 {[%clk 0:02:35.2]}
8... Nxd5 {[%clk 0:02:44.8]} 9. Bxd5 {[%clk 0:02:33.8]} 9... c6 {[%clk
0:02:43.9]} 10. Bb3 {[%clk 0:02:32.8]} 10... Nd7 {[%clk 0:02:37]} 11. c3 {[%clk
0:02:31.2]} 11... Ba5 {[%clk 0:02:36.5]} 12. d4 {[%clk 0:02:26.5]} 12... exd4
{[%clk 0:02:33.4]} 13. cxd4 {[%clk 0:02:25.4]} 13... Bxe1 {[%clk 0:02:32.6]} 14.
Qxe1 {[%clk 0:02:24.7]} 14... Bxf3 {[%clk 0:02:30]} 15. gxf3 {[%clk 0:02:24.5]}
15... Nb6 {[%clk 0:02:27.4]} 16. Be3 {[%clk 0:02:15.4]} 16... Qf6 {[%clk
0:02:25.4]} 17. Qe2 {[%clk 0:02:12]} 17... Rfe8 {[%clk 0:02:21.3]} 18. Kh2
{[%clk 0:01:56.5]} 18... Rad8 {[%clk 0:02:07.3]} 19. Rg1 {[%clk 0:01:55.2]}
19... h6 {[%clk 0:01:52]} 20. Rg4 {[%clk 0:01:53.3]} 20... Nd7 {[%clk
0:01:37.9]} 21. Rf4 {[%clk 0:01:48.6]} 21... Qe7 {[%clk 0:01:20.6]} 22. Rxf7
{[%clk 0:01:43.9]} 22... Qxf7 {[%clk 0:01:11.1]} 23. Bxf7+ {[%clk 0:01:42.5]}
23... Kxf7 {[%clk 0:01:11.2]} 24. Qc4+ {[%clk 0:01:38]} 24... Kf8 {[%clk
0:01:07.1]} 25. Qb4 {[%clk 0:01:36.8]} 25... Nb6 {[%clk 0:01:03.8]} 26. a4
{[%clk 0:01:32]} 26... Re7 {[%clk 0:00:57.2]} 27. a5 {[%clk 0:01:25.7]} 27...
Na8 {[%clk 0:00:56.6]} 28. Bf4 {[%clk 0:01:19.1]} 28... Red7 {[%clk 0:00:49.2]}
29. e5 {[%clk 0:01:11.8]} 29... Nc7 {[%clk 0:00:39.5]} 30. e6 {[%clk 0:00:58.6]}
30... Nxe6 {[%clk 0:00:26]} 31. Bg3 {[%clk 0:00:45.7]} 31... Ng5 {[%clk
0:00:25.4]} 32. Kg2 {[%clk 0:00:41.9]} 32... Kf7 {[%clk 0:00:19.5]} 33. Bh4
{[%clk 0:00:35.4]} 33... Re8 {[%clk 0:00:12.1]} 34. Bxg5 {[%clk 0:00:31.3]}
34... hxg5 {[%clk 0:00:12.1]} 35. Kg3 {[%clk 0:00:30.3]} 35... Re6 {[%clk
0:00:11]} 36. Kg4 {[%clk 0:00:28]} 36... Kg6 {[%clk 0:00:08.4]} 37. Qc4 {[%clk
0:00:22.4]} 37... Rf6 {[%clk 0:00:06]} 38. Qd3+ {[%clk 0:00:20.9]} 38... Kf7
{[%clk 0:00:06]} 39. Kxg5 {[%clk 0:00:20.1]} 39... Re7 {[%clk 0:00:04.7]} 40.
Kg4 {[%clk 0:00:18.9]} 40... Ree6 {[%clk 0:00:03.9]} 41. Kg3 {[%clk 0:00:17.5]}
41... Rg6+ {[%clk 0:00:04]} 42. Kh2 {[%clk 0:00:17.1]} 42... Ref6 {[%clk
0:00:03.8]} 43. Qe4 {[%clk 0:00:15.9]} 43... Rg5 {[%clk 0:00:02.9]} 44. f4
{[%clk 0:00:13.2]} 44... Rgf5 {[%clk 0:00:03]} 45. Kg3 {[%clk 0:00:11.6]} 45...
d5 {[%clk 0:00:03.3]} 46. Qe3 {[%clk 0:00:10.5]} 46... Kg6 {[%clk 0:00:03.1]}
47. h4 {[%clk 0:00:09.3]} 47... Rf7 {[%clk 0:00:02.8]} 48. Kf3 {[%clk
0:00:09.1]} 48... R7f6 {[%clk 0:00:02.9]} 49. Kg3 {[%clk 0:00:09.2]} 49... Rf7
{[%clk 0:00:02.9]} 50. Qe6+ {[%clk 0:00:09.2]} 50... R7f6 {[%clk 0:00:03]} 51.
Qe8+ {[%clk 0:00:09.2]} 51... Rf7 {[%clk 0:00:03.4]} 52. Kg4 {[%clk 0:00:08.5]}
52... Rxf4+ {[%clk 0:00:03.4]} 53. Kg3 {[%clk 0:00:08.3]} 53... Rf3+ {[%clk
0:00:03.7]} 54. Kg4 {[%clk 0:00:08.1]} 54... Rxf2 {[%clk 0:00:04]} 55. Kg3
{[%clk 0:00:08.1]} 55... Rf3+ {[%clk 0:00:04.3]} 56. Kg2 {[%clk 0:00:08]} 56...
Rf2+ {[%clk 0:00:04.3]} 57. Kg3 {[%clk 0:00:08]} 57... Rf3+ {[%clk 0:00:04.5]}
58. Kg2 {[%clk 0:00:08.2]} 58... Rf2+ {[%clk 0:00:04.4]} 59. Kg3 {[%clk
0:00:08.4]} 1/2-1/2